bitfinex/quotes_SOLUSD_20240712
["timestamp","ask_amount","ask_price","bid_price","bid_amount"]
[1720767542794,1.13880983,136.6,136.57,7.322]
[1720767542974,14.44,136.58,136.57,7.322]
[1720767544291,13.3322,136.63,136.59,7.3211]
[1720767544600,14.44,136.6,136.59,7.3211]
[1720767545274,13.3322,136.63,136.59,7.3211]
[1720767545275,7.3191,136.63,136.59,7.3211]
[1720767545597,14.44,136.6,136.59,7.3211]
[1720767546775,14.44,136.6,136.58,7.3215]
[1720767547100,14.44,136.59,136.58,7.3215]
[1720767547285,14.44,136.59,136.57,7.322]
[1720767547475,14.44,136.58,136.57,7.322]
[1720767549497,14.44,136.59,136.58,7.3212]
[1720767550083,7.3192,136.63,136.59,7.3211]
[1720767550281,14.44,136.6,136.59,7.3211]
[1720767550494,66.21740983,136.64,136.6,7.3204]
[1720767550684,24.43614028,136.63,136.6,7.3204]
[1720767550889,14.44,136.61,136.6,7.3204]
[1720767551391,14.44,136.63,136.62,7.3195]
[1720767563182,22.8485698,136.68,136.65,7.3179]
[1720767563501,7.3161,136.69,136.65,7.3179]
[1720767563502,14.44,136.66,136.65,7.3179]
[1720767563703,24.29045586,136.7,136.66,7.3173]
[1720767563887,14.44,136.67,136.66,7.3173]
[1720767564291,9.31587339,136.7,136.67,7.3167]
[1720767564491,14.44,136.68,136.67,7.3167]
[1720767564890,14.44,136.68,136.63,1.46349433]
[1720767565101,14.44,136.68,136.63,46.46349433]
[1720767565796,14.44,136.67,136.63,46.46349433]
[1720767567910,14.44,136.66,136.63,46.46349433]
[1720767568087,14.44,136.64,136.62,45.0]
[1720767568487,14.44,136.64,136.61,15.7227]
[1720767568488,14.44,136.63,136.61,15.7227]
[1720767568685,14.44,136.62,136.58,15.0752]
[1720767569490,7.3173,136.67,136.58,15.0752]
[1720767569491,14.44,136.61,136.58,15.0752]
[1720767569699,14.44,136.64,136.61,7.3199]
[1720767569884,14.44,136.62,136.61,7.3199]
[1720767578212,15.6042,136.66,136.64,7.3184]
[1720767578416,14.44,136.65,136.64,7.3184]
[1720767578818,9.31587339,136.7,136.56,6.2077]
[1720767578819,25.87097339,136.7,136.65,7.3177]
[1720767579132,14.44,136.66,136.65,7.3177]
[1720767579416,33.18647339,136.7,136.66,7.3172]
[1720767579604,14.44,136.67,136.66,7.3172]
[1720767580302,14.44,136.67,136.65,7.3177]
[1720767580502,14.44,136.66,136.65,7.3177]
[1720767581721,72.73323535,136.71,136.67,7.3165]
[1720767581923,14.44,136.68,136.67,7.3165]
[1720767583118,65.0749,136.71,136.67,7.3165]
[1720767583307,14.44,136.68,136.67,7.3165]
[1720767586101,14.44,136.68,136.64,14.44]
[1720767586306,14.44,136.68,136.63,30.1792]
[1720767586512,14.44,136.64,136.61,6.25]
[1720767587024,14.44,136.64,136.59,15.3978]
[1720767587224,14.44,136.61,136.59,15.3978]
[1720767588226,14.44,136.61,136.6,7.3206]
[1720767589717,14.44,136.62,136.61,7.3201]
[1720767590114,14.44,136.63,136.62,7.3195]
[1720767590526,17.74150983,136.68,136.64,7.3184]
[1720767590819,14.44,136.65,136.64,7.3184]
[1720767592033,14.44,136.65,136.63,7.3188]
[1720767592341,14.44,136.64,136.63,7.3188]
[1720767598338,28.88,136.64,136.63,7.3188]
[1720767598943,14.44,136.64,136.63,7.3188]
[1720767599156,14.44,136.64,136.62,7.3194]
[1720767599334,14.44,136.63,136.62,7.3194]
[1720767599635,14.44,136.63,136.57,6.5037]
[1720767599932,14.44,136.64,136.61,7.3196]
[1720767600143,14.44,136.62,136.61,7.3196]
[1720767600446,57.76,136.64,136.62,7.3192]
[1720767601526,57.76,136.64,136.62,7.3193]
[1720767601848,14.44,136.63,136.61,7.32]
[1720767602012,14.44,136.62,136.61,7.32]
[1720767602523,57.76,136.64,136.56,16.6536]
[1720767602524,7.3176,136.66,136.62,7.3194]
[1720767602723,24.43599999,136.65,136.63,7.319]
[1720767602929,20.0,136.65,136.64,7.3185]
[1720767603128,19.48394375,136.68,136.65,7.3176]
[1720767603331,14.44,136.66,136.65,7.3176]
[1720767604213,66.21360983,136.71,136.67,7.3167]
[1720767604418,14.44,136.68,136.67,7.3167]
[1720767605040,34.44,136.68,136.67,7.3167]
[1720767607419,14.44,136.68,136.67,7.3167]
[1720767608145,1.13880983,136.71,136.67,7.3167]
[1720767608439,14.44,136.68,136.67,7.3167]
[1720767609346,1.13880983,136.71,136.65,6.6343]
[1720767609552,14.44,136.7,136.66,75.4183]
[1720767609847,14.44,136.71,136.66,75.4183]
[1720767610354,14.44,136.7,136.66,60.9783]
[1720767610521,14.44,136.69,136.66,45.0]
[1720767610731,14.44,136.68,136.66,45.0]
[1720767611125,19.9408447,136.76,136.66,45.0]
[1720767611330,14.44,136.68,136.66,45.0]
[1720767611534,14.44,136.67,136.66,45.0]
[1720767611746,14.44,136.67,136.65,6.6343]
[1720767613428,14.44,136.71,136.65,6.6343]
[1720767613643,14.44,136.68,136.65,6.6343]
[1720767614056,14.44,136.67,136.63,15.1733]
[1720767614355,46.13406288,136.75,136.64,59.44]
[1720767614561,14.44,136.69,136.64,59.44]
[1720767614731,20.0,136.74,136.66,14.44]
[1720767614927,14.44,136.7,136.65,14.44]
[1720767615130,14.44,136.69,136.65,14.44]
[1720767615555,14.44,136.69,136.64,59.44]
[1720767615743,14.44,136.68,136.64,59.44]
[1720767616533,14.44,136.71,136.64,45.0]
[1720767616763,14.44,136.67,136.64,45.0]
[1720767617264,14.44,136.71,136.64,45.0]
[1720767617559,57.76,136.71,136.64,45.0]
[1720767617961,27.3133,136.74,136.64,45.0]
[1720767618262,14.44,136.68,136.64,45.0]
[1720767621355,14.44,136.71,136.64,45.0]
[1720767621664,14.44,136.67,136.64,45.0]
[1720767622956,14.44,136.67,136.63,15.1733]
[1720767623155,14.44,136.64,136.63,15.1733]
[1720767623374,14.44,136.64,136.6,15.9958]
[1720767623664,14.44,136.62,136.6,15.9958]
[1720767625140,7.3174,136.66,136.61,7.3201]
[1720767625460,14.44,136.62,136.61,7.3201]
[1720767626371,7.3159,136.69,136.58,14.44]
[1720767626550,14.44,136.64,136.59,59.44]
[1720767626739,14.44,136.64,136.6,0.46489292]
[1720767626946,14.44,136.64,136.63,7.319]
[1720767627266,14.44,136.65,136.64,7.3185]
[1720767627468,2.27287271,136.7,136.65,7.3179]
[1720767627646,14.44,136.66,136.65,7.3179]
[1720767627840,14.44,136.66,136.64,7.3183]
[1720767628052,14.44,136.65,136.59,59.44]
[1720767628258,14.44,136.63,136.62,7.3195]
[1720767628658,28.87,136.68,136.65,7.3174]
[1720767628842,28.87,136.68,136.59,45.0]
[1720767629175,31.14287271,136.7,136.67,7.3167]
[1720767629364,31.14287271,136.7,136.59,45.0]
[1720767629365,20.0,136.69,136.59,45.0]
[1720767630842,36.1868,136.68,136.59,45.0]
[1720767631066,20.0,136.67,136.59,45.0]
[1720767632363,28.87,136.66,136.63,7.3188]
[1720767632661,36.1886,136.64,136.6,7.3203]
[1720767633463,28.87,136.64,136.6,7.3203]
[1720767634970,28.87,136.64,136.61,7.32]
[1720767635462,28.87,136.64,136.62,7.3195]
[1720767636049,28.87,136.64,136.61,7.3199]
[1720767636555,28.87,136.64,136.54,6.1003]
[1720767636762,28.87,136.64,136.6,7.3205]
[1720767636946,20.0,136.63,136.6,7.3205]
[1720767637552,28.87,136.62,136.54,6.1003]
[1720767637854,20.0,136.61,136.54,6.1003]
[1720767638054,20.0,136.61,136.58,7.3213]
[1720767638357,20.0,136.61,136.57,7.322]
[1720767638747,20.0,136.61,136.53,15.4507]
[1720767638951,20.0,136.61,136.57,7.3219]
[1720767639263,20.0,136.61,136.53,15.4507]
[1720767639951,20.0,136.61,136.57,7.322]
[1720767640549,28.87,136.6,136.57,7.322]
[1720767641154,28.87,136.6,136.53,15.4507]
[1720767641358,36.1906,136.6,136.56,7.3225]
[1720767643062,28.87,136.6,136.56,7.3225]
[1720767643455,36.1906,136.6,136.56,7.3225]
[1720767643954,36.1906,136.6,136.54,7.3234]
[1720767643955,36.1917,136.58,136.54,7.3234]
[1720767644162,20.0,136.57,136.51,0.1841275]
[1720767644360,36.1917,136.58,136.53,7.324]
[1720767644566,20.0,136.57,136.54,7.3237]
[1720767644948,16.6325,136.59,136.57,7.322]
[1720767645355,16.6325,136.59,136.56,7.3227]
[1720767646696,16.6325,136.59,136.57,7.3219]
[1720767646878,28.87,136.61,136.51,1.64877597]
[1720767647066,43.9796,136.63,136.6,7.3204]
[1720767647582,43.9796,136.63,136.59,7.3209]
[1720767648063,51.2986,136.63,136.56,1.4642271]
[1720767648256,27.3198,136.62,136.57,7.322]
[1720767648457,20.0,136.62,136.58,7.3213]
[1720767648685,20.0,136.62,136.59,7.321]
[1720767648862,43.9796,136.63,136.6,7.3204]
[1720767649271,7.04300068,136.64,136.63,7.319]
[1720767649478,2.27287271,136.65,136.63,7.319]
[1720767649873,2.27287271,136.65,136.62,7.3193]
[1720767650259,2.27287271,136.65,136.55,22.5973]
[1720767650260,2.27287271,136.65,136.61,7.3199]
[1720767650460,22.27287271,136.65,136.61,7.3199]
[1720767651872,51.14287271,136.65,136.59,7.321]
[1720767652387,28.87,136.63,136.59,7.321]
[1720767652694,28.87,136.63,136.6,7.3205]
[1720767653266,28.87,136.63,136.61,7.3199]
[1720767653484,51.14287271,136.65,136.61,7.3199]
[1720767653797,51.14287271,136.65,136.62,7.3194]
[1720767654286,48.87,136.65,136.62,7.3194]
[1720767654492,16.2475,136.66,136.64,7.3185]
[1720767654683,28.87,136.67,136.64,7.3185]
[1720767654984,7.04300068,136.68,136.64,7.3185]
[1720767655503,14.35940068,136.68,136.64,7.3185]
[1720767655787,27.3172,136.67,136.62,7.3193]
[1720767656100,7.3174,136.66,136.61,7.3199]
[1720767656275,28.87,136.65,136.61,7.3199]
[1720767656595,20.0,136.64,136.61,7.3199]
[1720767656960,44.778,136.65,136.62,7.3194]
[1720767657288,28.87,136.67,136.64,7.3184]
[1720767657480,20.0,136.66,136.64,7.3184]
[1720767657784,28.87,136.67,136.64,7.3184]
[1720767659066,28.87,136.67,136.63,7.3188]
[1720767659368,36.187,136.67,136.62,7.3194]
[1720767659687,28.87,136.67,136.56,1.45891345]
[1720767659889,28.87,136.67,136.64,7.3184]
[1720767660274,36.187,136.67,136.63,7.3189]
[1720767660894,28.87,136.67,136.63,7.3189]
[1720767661087,28.87,136.67,136.64,7.3182]
[1720767661471,28.87,136.67,136.56,45.0]
[1720767661697,28.87,136.67,136.64,7.3184]
[1720767662570,28.87,136.67,136.65,7.3178]
[1720767663789,15.9515,136.69,136.66,7.3174]
[1720767663973,30.00880983,136.71,136.67,7.3168]
[1720767664290,1.13880983,136.71,136.6,22.8322]
[1720767664478,47.33953559,136.73,136.61,45.0]
[1720767664675,47.33953559,136.73,136.62,1.46246806]
[1720767665086,54.65343559,136.73,136.62,1.46246806]
[1720767665481,7.3148,136.71,136.62,1.46246806]
[1720767665679,36.1848,136.71,136.62,1.46246806]
[1720767665883,36.1863,136.69,136.62,1.46246806]
[1720767666089,28.87,136.69,136.62,1.46246806]
[1720767666975,28.87,136.69,136.66,7.317]
[1720767667181,33.41574542,136.71,136.67,7.3165]
[1720767667383,20.0,136.7,136.67,7.3165]
[1720767668278,20.0,136.7,136.61,45.0]
[1720767668591,7.316,136.69,136.61,45.0]
[1720767668795,28.87,136.68,136.6,22.8322]
[1720767670204,28.87,136.68,136.61,45.0]
[1720767673210,36.1864,136.68,136.61,45.0]
[1720767674512,28.87,136.66,136.63,7.3186]
[1720767675790,28.87,136.66,136.65,7.3179]
[1720767675983,44.2125,136.68,136.65,7.3179]
[1720767676290,20.0,136.67,136.65,7.3179]
[1720767676503,44.2125,136.68,136.65,7.3179]
[1720767679083,44.2125,136.68,136.57,22.1151]
[1720767679277,51.5289,136.68,136.58,45.0]
[1720767680610,44.2125,136.68,136.58,45.0]
[1720767680792,44.2125,136.68,136.65,7.3178]
[1720767682408,36.1878,136.66,136.58,45.0]
[1720767683296,28.87,136.62,136.54,15.5374]
[1720767684212,28.87,136.62,136.6,7.3202]
[1720767684506,28.87,136.62,136.61,7.3201]
[1720767684809,28.87,136.62,136.6,7.3204]
[1720767685014,36.1887,136.64,136.59,7.3209]
[1720767685305,20.0,136.63,136.59,7.3209]
[1720767685509,27.319,136.63,136.59,7.3209]
[1720767685912,20.0,136.63,136.59,7.3209]
[1720767687100,20.0,136.63,136.6,7.3206]
[1720767688014,28.87,136.62,136.54,15.5374]
[1720767688214,28.87,136.62,136.56,7.3224]
[1720767688416,20.0,136.61,136.58,7.3216]
[1720767688595,20.0,136.61,136.57,7.3221]
[1720767688596,28.87,136.6,136.57,7.3221]
[1720767689500,28.87,136.6,136.56,7.3225]
[1720767689706,28.87,136.6,136.57,7.3222]
[1720767691016,28.87,136.6,136.51,0.1841275]
[1720767691527,28.87,136.6,136.58,7.3215]
[1720767692413,20.0,136.61,136.51,0.1841275]
[1720767692612,20.0,136.61,136.6,7.3206]
[1720767692803,28.87,136.62,136.6,7.3206]
[1720767694018,28.87,136.62,136.59,7.3209]
[1720767694206,36.1897,136.62,136.58,7.3215]
[1720767694604,36.1897,136.62,136.59,7.321]
[1720767694605,28.87,136.62,136.59,7.321]
[1720767695417,28.87,136.62,136.58,7.3215]
[1720767696117,36.1896,136.62,136.58,7.3215]
[1720767696508,28.87,136.62,136.59,7.3211]
[1720767697825,28.87,136.64,136.54,22.127]
[1720767698120,28.87,136.68,136.57,6.36]
[1720767698303,28.87,136.68,136.64,7.3182]
[1720767699016,36.1863,136.68,136.64,7.3182]
[1720767699194,36.1863,136.68,136.64,7.3184]
[1720767699822,20.0,136.67,136.64,7.3184]
[1720767702315,36.1863,136.68,136.64,7.3184]
[1720767702515,28.87,136.68,136.65,7.3178]
[1720767702832,11.86164542,136.69,136.65,7.3178]
[1720767703710,11.86164542,136.69,136.62,7.68511744]
[1720767703905,7.3164,136.68,136.62,7.68511744]
[1720767704517,7.3164,136.68,136.64,7.3183]
[1720767704721,7.3164,136.68,136.61,15.3662]
[1720767704922,28.87,136.68,136.62,7.3194]
[1720767705111,7.3169,136.67,136.63,7.3189]
[1720767705312,7.3177,136.66,136.59,6.1183]
[1720767705516,36.1877,136.66,136.59,6.1183]
[1720767706013,28.87,136.66,136.62,7.3192]
[1720767706813,28.87,136.66,136.62,7.3194]
[1720767707735,36.1875,136.66,136.61,7.3199]
[1720767708029,36.1875,136.66,136.62,7.3194]
[1720767708410,36.1875,136.66,136.61,7.3197]
[1720767708616,28.87,136.66,136.62,7.3191]
[1720767710117,36.1875,136.66,136.62,7.3191]
[1720767710720,28.87,136.66,136.62,7.3191]
[1720767712610,7.317,136.67,136.62,7.3191]
[1720767712611,14.44,136.63,136.62,7.3191]
[1720767713036,14.44,136.63,136.61,7.3198]
[1720767713230,14.44,136.62,136.57,16.2721]
[1720767713544,14.44,136.6,136.59,7.3211]
[1720767717232,14.44,136.6,136.58,7.3216]
[1720767717540,14.44,136.59,136.58,7.3216]
[1720767724135,15.5009,136.63,136.53,16.1566]
[1720767724329,15.5009,136.63,136.6,7.3203]
[1720767724530,14.44,136.61,136.6,7.3203]
[1720767724828,57.76,136.64,136.6,7.3203]
[1720767725138,14.44,136.61,136.6,7.3203]
[1720767726050,14.44,136.61,136.59,7.3211]
[1720767726358,14.44,136.6,136.59,7.3211]
[1720767727847,14.44,136.61,136.6,7.3202]
[1720767731955,23.9526,136.66,136.62,7.3195]
[1720767732137,14.44,136.63,136.57,21.094]
[1720767732338,14.44,136.61,136.6,7.3204]
[1720767734234,20.0,136.65,136.62,7.3193]
[1720767734434,20.0,136.65,136.57,21.094]
[1720767734664,20.0,136.65,136.62,7.3193]
[1720767734851,14.44,136.63,136.62,7.3193]
[1720767736046,14.44,136.63,136.61,7.3199]
[1720767736236,14.44,136.62,136.61,7.3199]
[1720767738656,14.44,136.62,136.58,60.5244]
[1720767738863,14.44,136.61,136.6,7.3206]
[1720767740662,14.44,136.62,136.61,7.3201]
[1720767745668,21.18074542,136.66,136.63,7.3185]
[1720767745874,14.44,136.64,136.63,7.3185]
[1720767746678,14.44,136.64,136.62,7.3191]
[1720767746971,14.44,136.63,136.61,7.32]
[1720767747157,14.44,136.62,136.6,7.3202]
[1720767747355,14.44,136.64,136.61,7.3201]
[1720767747557,14.44,136.62,136.61,7.3201]
[1720767757372,21.18074542,136.66,136.62,7.319]
[1720767757572,14.44,136.63,136.62,7.319]
[1720767760179,20.0,136.65,136.64,7.3185]
[1720767760378,24.43494203,136.65,136.64,7.3185]
[1720767760563,38.87494203,136.65,136.64,7.3185]
[1720767761267,34.44,136.65,136.64,7.3185]
[1720767761583,34.44,136.65,136.58,29.9644]
[1720767761759,34.44,136.65,136.63,7.3187]
[1720767762155,14.44,136.65,136.63,7.3187]
[1720767762461,14.44,136.67,136.66,7.3174]
[1720767762770,4.77012797,136.69,136.67,7.3168]
[1720767763084,14.44,136.68,136.67,7.3168]
[1720767765986,14.44,136.69,136.64,14.44]
[1720767766161,14.44,136.69,136.65,45.0]
[1720767766571,4.77012797,136.72,136.65,59.44]
[1720767766774,4.77012797,136.72,136.66,14.44]
[1720767766775,14.44,136.7,136.66,14.44]
[1720767767263,4.77012797,136.72,136.66,14.44]
[1720767767458,4.54574542,136.75,136.67,14.44]
[1720767767663,14.44,136.72,136.68,15.4265]
[1720767768282,4.54574542,136.75,136.68,15.4265]
[1720767768468,14.44,136.72,136.68,15.4265]
[1720767768985,24.54574542,136.75,136.69,14.44]
[1720767768986,4.54574542,136.75,136.69,14.44]
[1720767769315,19.98462797,136.8,136.7,14.44]
[1720767769594,19.98462797,136.8,136.71,59.44]
[1720767769595,14.44,136.75,136.71,59.44]
[1720767769964,19.98462797,136.8,136.71,66.0673]
[1720767770160,14.44,136.75,136.71,66.0673]
[1720767770371,19.98462797,136.8,136.71,66.0673]
[1720767770601,14.44,136.75,136.71,66.0673]
[1720767770798,14.44,136.76,136.71,66.0673]
[1720767773785,20.0,136.79,136.72,30.2372]
[1720767774099,4.77012797,136.8,136.72,30.2372]
[1720767774100,14.44,136.78,136.73,59.44]
[1720767774488,14.44,136.77,136.73,45.0]
[1720767776998,14.44,136.76,136.73,45.0]
[1720767778609,14.44,136.77,136.73,45.0]
[1720767779413,20.0,136.8,136.73,45.0]
[1720767779716,14.44,136.77,136.73,59.44]
[1720767780502,14.44,136.77,136.74,1.33023129]
[1720767780909,14.44,136.76,136.74,1.33023129]
[1720767781893,14.44,136.77,136.74,1.33023129]
[1720767783091,20.0,136.81,136.74,1.33023129]
[1720767783295,14.44,136.78,136.74,1.33023129]
[1720767783602,14.44,136.79,136.74,1.33023129]
[1720767783908,14.44,136.79,136.74,15.77023129]
[1720767784107,14.44,136.79,136.75,45.0]
[1720767784324,14.44,136.79,136.76,1.33003675]
[1720767786013,14.44,136.78,136.75,1.33003675]
[1720767786229,14.44,136.77,136.75,1.33003675]
[1720767786415,14.44,136.78,136.75,1.33003675]
[1720767786928,14.44,136.77,136.74,45.0]
[1720767787296,14.44,136.77,136.73,45.0]
[1720767787500,14.44,136.78,136.73,59.44]
[1720767787703,14.44,136.79,136.74,14.44]
[1720767787915,23.65261051,136.84,136.75,59.44]
[1720767788116,14.44,136.8,136.76,45.0]
[1720767788527,23.65261051,136.84,136.76,45.0]
[1720767788528,14.44,136.79,136.76,45.0]
[1720767788725,14.44,136.8,136.76,45.0]
[1720767789232,14.44,136.8,136.77,1.33041051]
[1720767791317,14.44,136.79,136.75,14.44]
[1720767791517,14.44,136.79,136.76,45.0]
[1720767791826,14.44,136.79,136.75,45.0]
[1720767792233,23.65261051,136.84,136.75,45.0]
[1720767792409,20.0,136.83,136.75,45.0]
[1720767792609,15.4708,136.84,136.76,6.4128]
[1720767792815,14.44,136.81,136.77,59.44]
[1720767793226,0.664527,136.85,136.78,15.5398]
[1720767793401,14.44,136.82,136.78,15.5398]
[1720767793923,0.664527,136.85,136.78,29.9798]
[1720767794116,14.44,136.83,136.78,29.9798]
[1720767794619,14.44,136.83,136.79,45.0]
[1720767795915,0.664527,136.85,136.8,14.44]
[1720767796118,15.104527,136.85,136.81,45.0]
[1720767796320,14.44,136.84,136.81,45.0]
[1720767796521,0.664527,136.85,136.81,45.0]
[1720767796704,14.44,136.84,136.81,45.0]
[1720767796921,0.664527,136.85,136.82,0.61185468]
[1720767797119,14.44,136.84,136.82,0.61185468]
[1720767797317,15.104527,136.85,136.82,0.61185468]
[1720767798113,14.44,136.84,136.82,0.61185468]
[1720767799635,0.664527,136.85,136.82,0.61185468]
[1720767799936,15.104527,136.85,136.82,0.61185468]
[1720767800235,0.664527,136.85,136.81,45.0]
[1720767800420,14.44,136.84,136.81,45.0]
[1720767800627,14.44,136.84,136.8,45.0]
[1720767800935,0.664527,136.85,136.8,45.0]
[1720767801113,14.44,136.84,136.8,45.0]
[1720767801725,15.104527,136.85,136.81,14.44]
[1720767801925,15.104527,136.85,136.82,45.0]
[1720767802415,14.44,136.84,136.81,45.0]
[1720767803430,0.664527,136.85,136.81,45.0]
[1720767803612,15.104527,136.85,136.81,45.0]
[1720767809926,0.664527,136.85,136.81,59.44]
[1720767812138,0.664527,136.85,136.81,45.0]
[1720767812321,14.44,136.84,136.81,45.0]
[1720767813050,15.104527,136.85,136.81,45.0]
[1720767813221,14.44,136.84,136.81,45.0]
[1720767814126,15.104527,136.85,136.81,59.44]
[1720767814325,0.664527,136.85,136.81,59.44]
[1720767816816,0.664527,136.85,136.81,45.0]
[1720767817138,0.664527,136.85,136.83,15.9317]
[1720767817432,0.664527,136.85,136.84,45.0]
[1720767818230,0.664527,136.85,136.83,15.9317]
[1720767818540,0.664527,136.85,136.84,45.0]
[1720767818929,0.664527,136.85,136.83,15.9317]
[1720767819128,15.104527,136.85,136.8,35.8401]
[1720767819358,15.104527,136.85,136.81,45.0]
[1720767821920,14.44,136.84,136.81,45.0]
[1720767824935,0.664527,136.85,136.81,45.0]
[1720767825241,15.104527,136.85,136.81,45.0]
[1720767825442,0.664527,136.85,136.81,59.44]
[1720767826544,0.664527,136.85,136.82,14.44]
[1720767827041,0.664527,136.85,136.81,45.0]
[1720767827042,0.664527,136.85,136.83,45.0]
[1720767827344,0.664527,136.85,136.82,45.0]
[1720767830549,0.664527,136.85,136.82,59.44]
[1720767830723,0.664527,136.85,136.82,45.0]
[1720767830930,0.664527,136.85,136.82,14.44]
[1720767831149,0.664527,136.85,136.83,45.0]
[1720767831870,0.664527,136.85,136.83,59.44]
[1720767832027,0.664527,136.85,136.83,45.0]
[1720767832645,0.664527,136.85,136.82,45.0]
[1720767833528,15.104527,136.85,136.82,45.0]
[1720767833944,0.664527,136.85,136.82,45.0]
[1720767835436,0.664527,136.85,136.82,59.44]
[1720767836044,0.664527,136.85,136.83,1.461377]
[1720767836848,0.664527,136.85,136.83,15.901377]
[1720767837034,0.664527,136.85,136.84,45.0]
[1720767839154,0.664527,136.85,136.83,45.0]
[1720767840262,0.664527,136.85,136.82,59.44]
[1720767840471,0.664527,136.85,136.83,14.44]
[1720767840768,0.664527,136.85,136.84,45.0]
[1720767842174,0.664527,136.85,136.84,59.44]
[1720767842469,0.664527,136.85,136.84,45.0]
[1720767842873,0.664527,136.85,136.83,59.44]
[1720767844341,0.664527,136.85,136.84,14.44]
[1720767844569,0.664527,136.85,136.84,59.44]
[1720767844744,2.7e-05,136.85,136.84,59.44]
[1720767844940,2.7e-05,136.85,136.84,82.2593]
[1720767845961,2.7e-05,136.85,136.84,89.6003]
[1720767847647,2.7e-05,136.85,136.84,82.2593]
[1720767848956,2.7e-05,136.85,136.84,104.2393]
[1720767849406,2.7e-05,136.85,136.84,118.6793]
[1720767849679,2.7e-05,136.85,136.84,126.0203]
[1720767850653,16.5674,136.97,136.84,126.0203]
[1720767850880,23.1867,136.97,136.9,14.44]
[1720767851078,14.44,136.96,136.91,59.44]
[1720767851377,14.44,136.95,136.91,59.44]
[1720767851575,14.44,136.96,136.91,59.44]
[1720767851877,14.44,136.96,136.92,1.45966542]
[1720767852083,14.44,136.96,136.93,1.45955882]
[1720767852760,23.1867,136.97,136.91,45.0]
[1720767852966,14.44,136.95,136.91,45.0]
[1720767853272,23.1867,136.97,136.91,45.0]
[1720767853480,14.44,136.93,136.91,45.0]
[1720767853657,14.44,136.93,136.88,14.44]
[1720767853857,14.44,136.92,136.84,22.8193]
[1720767854069,14.44,136.92,136.87,14.44]
[1720767854269,14.44,136.92,136.84,22.8193]
[1720767854455,14.44,136.91,136.86,14.44]
[1720767855382,14.44,136.91,136.84,22.8193]
[1720767855752,14.44,136.91,136.87,14.44]
[1720767856684,14.44,136.93,136.88,14.44]
[1720767856901,14.44,136.93,136.89,45.0]
[1720767857489,14.44,136.92,136.89,45.0]
[1720767859985,14.44,136.93,136.89,45.0]
[1720767861162,23.1867,136.97,136.89,45.0]
[1720767861378,14.44,136.93,136.89,45.0]
[1720767861970,14.44,136.93,136.89,59.44]
[1720767862272,23.1867,136.97,136.89,59.44]
[1720767862483,14.44,136.95,136.9,14.44]
[1720767862788,14.44,136.95,136.91,45.0]
[1720767862986,14.44,136.94,136.91,45.0]